fUSD/lending_fUSD_20260322
["ID","MTS","AMOUNT","RATE_DAILY","PERIOD"]
[408733378,1774180247795,-644.79446246,0.00023005,2]
[408733379,1774180247804,-301.1433787,0.00023008,2]
[408733380,1774180247816,-200.0,0.00023008,2]
[408733381,1774180247825,-1863.85654116,0.00023077,2]
[408733382,1774180247834,-500.0,0.00023123,2]
[408733383,1774180247843,-1341.21819728,0.0002323,2]
[408733384,1774180247854,-500.0,0.00023287,2]
[408733385,1774180247864,-500.0,0.00023299,2]
[408733386,1774180247873,-152.0,0.00023299,2]
[408733387,1774180247883,-39793.6704443,0.000233,7]
[408733388,1774180247901,-38192.5195557,0.000233,7]
[408733389,1774180247910,-151.0,0.000233,2]
[408733390,1774180247919,-151.0,0.000233,2]
[408733391,1774180247929,-164.079115,0.000233,2]
[408733392,1774180247939,-151.0,0.000233,2]
[408733393,1774180247948,-151.0,0.000233,2]
[408733394,1774180247960,-163.89475,0.000233,2]
[408733395,1774180247969,-163.89475,0.000233,2]
[408733396,1774180247978,-163.89475,0.000233,2]
[408733397,1774180247988,-163.89475,0.000233,2]
[408733398,1774180247997,-995.90420033,0.0002333,2]
[408733399,1774180248007,-2536.0,0.000234,2]
[408733400,1774180248017,-200.0,0.00023556,2]
[408733401,1774180248026,-277.29,0.00023639,2]
[408733402,1774180248035,-166.36,0.00023639,2]
[408733403,1774180248046,-192.78,0.00023639,2]
[408733404,1774180248055,-238.49,0.00023639,2]
[408733405,1774180248065,-1931.14,0.00023836,2]
[408733406,1774180248075,-979.16666667,0.00024,7]
[408733407,1774180248085,-160.0,0.00024,7]
[408733408,1774180248095,-500.0,0.00024,10]
[408733409,1774180248106,-160.0,0.00024,7]
[408733410,1774180248118,-323.0,0.00024,2]
[408733411,1774180248128,-200.0,0.00024104,2]
[408733412,1774180248138,-6002.48,0.00024322,2]
[408733413,1774180248147,-600.20170405,0.0002435,30]
[408733414,1774180248156,-1092.51,0.000244,7]
[408733415,1774180248166,-702.82,0.00024513,2]
[408733416,1774180248175,-510.0,0.0002456,11]
[408733417,1774180248184,-1203.11,0.000246,7]
[408733418,1774180248196,-318.48764684,0.0002465,120]
[408733419,1774180248206,-169.6115766,0.0002465,2]
[408733420,1774180248215,-500.0,0.00024656,2]
[408733421,1774180248224,-1000.0,0.00024658,2]
[408733422,1774180248233,-874.41,0.00024658,2]
[408733423,1774180248242,-150.0,0.00024658,2]
[408733424,1774180248252,-887.66242126,0.00024698,40]
[408733425,1774180248262,-77986.19,0.000247,7]
[408733426,1774180248271,-979.16666667,0.000247,7]
[408733427,1774180248280,-305.2108411,0.000248,2]
[408733428,1774180248289,-442.66,0.00024819,2]
[408733429,1774180248299,-742.85,0.00024876,2]
[408733430,1774180248307,-500.0,0.00024899,2]
[408733431,1774180248316,-500.0,0.00024899,2]
[408733432,1774180248326,-500.0,0.00024899,2]
[408733433,1774180248335,-500.0,0.00024899,2]
[408733434,1774180248344,-240.01080229,0.00024899,2]
[408733435,1774180248353,-666.0,0.00024899,2]
[408733436,1774180248363,-150.0,0.00024899,2]
[408733437,1774180248372,-150.0,0.00024899,2]
[408733438,1774180248382,-150.0,0.00024899,2]
[408733439,1774180248391,-150.0,0.00024899,2]
[408733440,1774180248401,-150.0,0.00024899,2]
[408733441,1774180248410,-150.0,0.00024899,2]
[408733442,1774180248419,-199.51664943,0.00024899,2]
[408733443,1774180248428,-160.0,0.000249,3]
[408733444,1774180248437,-793.44,0.000249,7]
[408733445,1774180248447,-151.0,0.000249,2]
[408733446,1774180248456,-151.0,0.000249,2]
[408733447,1774180248466,-151.0,0.000249,2]
[408733448,1774180248476,-151.0,0.000249,2]
[408733449,1774180248486,-151.0,0.000249,2]
[408733450,1774180248495,-245.198497,0.000249,2]
[408733451,1774180248505,-245.198497,0.000249,2]
[408733452,1774180248514,-245.198497,0.000249,2]
[408733453,1774180248523,-259.008986,0.000249,2]
[408733454,1774180248532,-245.198497,0.000249,2]
[408733455,1774180248542,-259.008986,0.000249,2]
[408733456,1774180248551,-259.008986,0.000249,2]
[408733457,1774180248561,-259.008986,0.000249,2]
[408733458,1774180248571,-655.375135,0.000249,2]
[408733459,1774180248580,-655.375135,0.000249,2]
[408733460,1774180248590,-655.375135,0.000249,2]
[408733461,1774180248600,-655.375135,0.000249,2]
[408733462,1774180248609,-302.657938,0.000249,2]
[408733463,1774180248618,-302.657938,0.000249,2]
[408733464,1774180248628,-302.657938,0.000249,2]
[408733465,1774180248637,-302.657938,0.000249,2]
[408733466,1774180248646,-151.0,0.000249,2]
[408733467,1774180248655,-151.0,0.000249,2]
[408733468,1774180248665,-151.0,0.000249,2]
[408733469,1774180248674,-496.4276,0.000249,2]
[408733470,1774180248683,-496.4276,0.000249,2]
[408733471,1774180248693,-496.4276,0.000249,2]
[408733472,1774180248703,-496.4276,0.000249,2]
[408733473,1774180248712,-216.0,0.0002493,30]
[408733474,1774180248722,-151.0,0.00024997,7]
[408733475,1774180248731,-2595.35189897,0.00025,30]
[408733476,1774180248741,-1336.26649901,0.00025,4]
[408733477,1774180248750,-221.85882281,0.00025,120]
[408733478,1774180248759,-31720.00690847,0.00025,2]
[408733479,1774180248769,-979.16666667,0.00025,7]
[408733480,1774180248779,-323.0,0.00025,2]
[408733481,1774180248789,-151.0,0.00025275,2]
[408733482,1774180248799,-1060.22,0.00025384,2]
[408733483,1774180248808,-228.0,0.00025446,2]
[408733484,1774180248818,-165.26505,0.00025477,14]
[408733485,1774180248828,-155.0,0.00025535,3]
[408733486,1774180248837,-1400.0,0.00025567,5]
[408733487,1774180248847,-152.7676,0.000256,2]
[408733488,1774180248856,-275.0,0.00025719,2]
[408733489,1774180248866,-804.17102365,0.00025744,2]
[408733490,1774180248875,-668.65185757,0.00025744,2]
[408733491,1774180248885,-150.0,0.0002589,2]
[408733492,1774180248897,-958.45,0.000259,7]
[408733493,1774180248906,-793.44,0.000259,7]
[408733494,1774180248916,-4287.49,0.00025902,2]
[408733495,1774180248926,-1379.38,0.00025902,2]
[408733496,1774180248937,-323.0,0.00025928,2]
[408733497,1774180248947,-323.0,0.00026,2]
[408733498,1774180248957,-500.0,0.00026025,2]
[408733499,1774180248967,-2403.0,0.0002604,3]
[408733500,1774180248977,-239.0,0.0002604,3]
[408733501,1774180248987,-1037.8,0.000261,7]
[408733502,1774180248996,-1203.11,0.000261,7]
[408733503,1774180249005,-417.52,0.00026194,30]
[408733504,1774180249014,-975.0,0.0002636,3]
[408733505,1774180249024,-151.0,0.0002636,2]
[408733506,1774180249033,-370.41,0.0002643,2]
[408733507,1774180249045,-250.0,0.00026496,7]
[408733508,1774180249055,-1092.51,0.000265,7]
[408733509,1774180249064,-2000.0,0.000266,2]
[408733510,1774180249074,-1037.8,0.000266,7]
[408733511,1774180249084,-702.82,0.00026676,2]
[408733512,1774180249093,-793.44,0.000267,7]
[408733513,1774180249103,-466.58,0.000267,7]
[408733514,1774180249112,-1940.24,0.000267,2]
[408733515,1774180249121,-1203.11,0.000267,7]
[408733516,1774180249130,-151.0,0.0002678,3]
[408733517,1774180249140,-1521.0,0.0002678,3]
[408733518,1774180249149,-1521.0,0.0002678,3]
[408733519,1774180249159,-151.0,0.0002678,3]
[408733520,1774180249168,-456.12817696,0.0002678,3]
[408733521,1774180249177,-222.90548411,0.0002678,3]
[408733522,1774180249191,-153.78487307,0.0002678,3]
[408733523,1774180249200,-2403.0,0.00026845,3]
[408733524,1774180249210,-800.0,0.00026986,120]
[408733525,1774180249222,-800.0,0.00026986,120]
[408733526,1774180249233,-800.0,0.00026986,120]
[408733527,1774180249243,-308.47240642,0.00026988,2]
[408733528,1774180249253,-520.83,0.00026999,2]
[408733529,1774180249262,-747.28321255,0.00027,120]
[408733530,1774180249272,-278.62222136,0.00027,120]
[408733531,1774180249282,-77986.19,0.00027,7]
[408733532,1774180249291,-979.16666667,0.00027,3]
[408733533,1774180249301,-151.0,0.00027,2]
[408733534,1774180249311,-151.0,0.00027,2]
[408733535,1774180249320,-160.0,0.00027,3]
[408733536,1774180249330,-324.4,0.00027,2]
[408733537,1774180249340,-3714.26,0.00027123,2]
[408733538,1774180249350,-150.548182,0.00027125,2]
[408733539,1774180249360,-150.0,0.00027185,2]
[408733540,1774180249369,-510.0,0.000272,13]
[408733541,1774180249379,-154.58076462,0.0002737,2]
[408733542,1774180249388,-500.0,0.00027394,2]
[408733543,1774180249397,-521.23273696,0.00027396,2]
[408733544,1774180249407,-500.0,0.00027396,2]
[408733545,1774180249416,-500.0,0.00027396,2]
[408733546,1774180249426,-1000.0,0.00027397,20]
[408733547,1774180249435,-874.41,0.00027397,2]
[408733548,1774180249444,-300.0,0.00027397,2]
[408733549,1774180249454,-522.97,0.00027397,2]
[408733550,1774180249463,-284.5883761,0.00027397,2]
[408733551,1774180249684,-151.0,0.00027397,2]
[408733552,1774180249694,-151.0,0.00027397,2]
[408733553,1774180249703,-151.0,0.00027397,2]
[408733554,1774180249713,-151.0,0.00027397,2]
[408733555,1774180249722,-151.0,0.00027397,2]
[408733556,1774180249731,-151.0,0.00027397,2]
[408733557,1774180249740,-360.976367,0.00027397,2]
[408733558,1774180249749,-360.976367,0.00027397,2]
[408733559,1774180249759,-360.976367,0.00027397,2]
[408733560,1774180249769,-360.976367,0.00027397,2]
[408733561,1774180249779,-360.976367,0.00027397,2]
[408733562,1774180249789,-360.976367,0.00027397,2]
[408733563,1774180249799,-360.976367,0.00027397,2]
[408733564,1774180249808,-360.976367,0.00027397,2]
[408733565,1774180249818,-154.109905,0.00027397,2]
[408733566,1774180249827,-216.0,0.00027397,2]
[408733567,1774180249836,-216.0,0.00027397,2]
[408733568,1774180249845,-216.0,0.00027397,2]
[408733569,1774180249855,-216.0,0.00027397,2]
[408733570,1774180249864,-216.0,0.00027397,2]
[408733571,1774180249874,-216.0,0.00027397,2]
[408733572,1774180249885,-216.0,0.00027397,2]
[408733573,1774180249897,-216.0,0.00027397,2]
[408733574,1774180249907,-216.0,0.00027397,2]
[408733575,1774180249917,-216.0,0.00027397,2]
[408733576,1774180249927,-216.0,0.00027397,2]
[408733577,1774180249937,-216.0,0.00027397,2]
[408733578,1774180249946,-151.0,0.00027397,2]
[408733579,1774180249956,-151.0,0.00027397,2]
[408733580,1774180249965,-151.0,0.00027397,2]
[408733581,1774180249975,-151.0,0.00027397,2]
[408733582,1774180249985,-151.0,0.00027397,2]
[408733583,1774180249995,-151.0,0.00027397,2]
[408733584,1774180250005,-151.0,0.00027397,2]
[408733585,1774180250015,-151.0,0.00027397,2]
[408733586,1774180250025,-151.0,0.00027397,2]
[408733587,1774180250035,-151.0,0.00027397,2]
[408733588,1774180250044,-151.0,0.00027397,2]
[408733589,1774180250054,-169.622594,0.00027397,2]
[408733590,1774180250064,-227.11,0.00027972,2]
[408733591,1774180250074,-159.82,0.00027972,2]
[408733592,1774180250083,-908.39,0.00027972,2]
[408733593,1774180250093,-160.0,0.00028,10]
[408733594,1774180250103,-281.065839,0.00028,60]
[408733595,1774180250113,-958.45,0.00028,7]
[408733596,1774180250123,-979.16666667,0.00028,10]
[408733597,1774180250133,-153.3273,0.000284,2]
[408733598,1774180250143,-833.92535153,0.00028483,2]
[408733599,1774180250152,-693.3919763,0.00028483,2]
[408733600,1774180250162,-166.82,0.00028493,2]
[408733601,1774180250171,-793.44,0.000285,7]
[408733602,1774180250181,-150.0,0.00028544,2]
[408733603,1774180250191,-1037.8,0.000286,7]
[408733604,1774180250202,-1203.11,0.000286,7]
[408733605,1774180250212,-150.0,0.000287,30]
[408733606,1774180250222,-500.0,0.00028767,120]
[408733607,1774180250232,-500.0,0.00028767,120]
[408733608,1774180250241,-500.0,0.00028767,120]
[408733609,1774180250250,-500.0,0.00028767,120]
[408733610,1774180250260,-500.0,0.00028767,120]
[408733611,1774180250269,-500.0,0.00028767,120]
[408733612,1774180250278,-191.26170008,0.00028767,120]
[408733613,1774180250287,-623.0,0.00028768,2]
[408733614,1774180250297,-155.0,0.00028798,2]
[408733615,1774180250307,-77986.19,0.000288,7]
[408733616,1774180250317,-208.0,0.0002882,30]
[408733617,1774180250327,-702.82,0.00028839,2]
[408733618,1774180250336,-202.985,0.00028877,30]
[408733619,1774180250345,-1863.85654116,0.00028933,2]
[408733620,1774180250355,-5373.15005752,0.00028933,2]
[408733621,1774180250364,-2724.43089287,0.00029,120]
[408733622,1774180250373,-466.58,0.000291,7]
[408733623,1774180250385,-1940.24,0.000291,2]
[408733624,1774180250395,-1037.8,0.000291,7]
[408733625,1774180250405,-1092.51,0.000291,7]
[408733626,1774180250415,-1203.11,0.000292,7]
[408733627,1774180250425,-154.0,0.0002928,3]
[408733628,1774180250434,-624.0,0.00029391,7]
[408733629,1774180250446,-202.985,0.00029425,30]
[408733630,1774180250457,-623.0,0.00029489,2]
[408733631,1774180250466,-623.0,0.00029718,7]
[408733632,1774180250476,-624.0,0.00029734,2]
[408733633,1774180250486,-623.0,0.00029734,2]
[408733634,1774180250495,-510.0,0.0002984,15]
[408733635,1774180250505,-322.0,0.000299,2]
[408733636,1774180250514,-998.0,0.000299,2]
[408733637,1774180250523,-312.0,0.000299,2]
[408733638,1774180250533,-150.0,0.00029971,2]
[408733639,1774180250543,-202.985,0.00029973,30]
[408733640,1774180250553,-362.72905046,0.0003,30]
[408733641,1774180250563,-714.07816869,0.0003,120]
[408733642,1774180250573,-218.56334008,0.0003,120]
[408733643,1774180250583,-1414.99878496,0.0003,120]
[408733644,1774180250592,-519.80003167,0.0003,30]
[408733645,1774180250601,-150.0,0.0003,2]
[408733646,1774180250611,-362.72905046,0.0003,30]
[408733647,1774180250620,-362.72905046,0.0003,30]
[408733648,1774180250629,-160.0,0.0003,120]
[408733649,1774180250642,-246.0975821,0.0003,7]
[408733650,1774180250652,-246.0975821,0.0003,7]
[408733651,1774180250662,-979.16666667,0.0003,30]
[408733652,1774180250671,-160.0,0.0003,120]
[408733653,1774180250681,-623.0,0.00030022,2]
[408733654,1774180250690,-623.0,0.00030085,2]
[408733655,1774180250700,-1990.5393402,0.0003013,120]
[408733656,1774180250710,-210.84932622,0.0003013,30]
[408733657,1774180250721,-300.0,0.0003013,30]
[408733658,1774180250730,-4440.56077706,0.0003013,2]
[408733659,1774180250739,-874.41,0.00030137,2]
[408733660,1774180250748,-500.0,0.00030137,120]
[408733661,1774180250757,-487.57,0.00030137,120]
[408733662,1774180250766,-624.0,0.00030281,2]
[408733663,1774180250776,-2000.0,0.000303,2]
[408733664,1774180250785,-623.0,0.00030323,2]
[408733665,1774180250794,-417.52,0.00030388,60]
[408733666,1774180250803,-793.44,0.000304,30]
[408733667,1774180250813,-183.5,0.00030411,120]
[408733668,1774180250822,-466.58,0.000306,7]
[408733669,1774180250832,-1940.24,0.000306,2]
[408733670,1774180250841,-625.0,0.00030615,2]
[408733671,1774180250850,-250.0,0.000308,30]
[408733672,1774180250860,-51824.33107911,0.000308,7]
[408733673,1774180251727,-2000.0,0.000167,2]
[408733674,1774180251742,-161.10858927,0.00016762,2]
[408733675,1774180251757,-2000.0,0.000168,2]
[408733676,1774180251772,-2000.0,0.000169,2]
[408733677,1774180251789,-238.16614228,0.0001698,2]
[408733678,1774180251805,-431.52526845,0.000308,7]
[408733679,1774180251825,-819.9614925,0.000308,7]
[408733680,1774180261256,225.56,0.0001,2]
[408733681,1774180322596,225.56,0.0001,2]
[408733684,1774180538404,-1600.0,0.00010599,2]
[408733685,1774180538435,-200.0,0.000106,3]
[408733686,1774180538463,-250.0,0.0001065,2]
[408733687,1774180538491,-400.0,0.000107,3]
[408733688,1774180538518,-700.0,0.000108,3]
[408733689,1774180538548,-250.0,0.00010807,2]
[408733690,1774180538575,-900.0,0.000109,3]
[408733691,1774180538600,-190.0372579,0.00011037,2]
[408733692,1774180538627,-153.91,0.00011059,2]
[408733693,1774180542351,-1200.0,0.00011136,2]
[408733694,1774180542380,-2295.303,0.00011137,2]
[408733695,1774180546365,-3009.404,0.00011137,2]
[408733696,1774180546392,-193.629,0.00011137,2]
[408733697,1774180546418,-150.0,0.00011148,2]
[408733698,1774180546445,-190.03725788,0.00011149,2]
[408733699,1774180546566,-2573.83222636,0.00011149,2]
[408733701,1774180827118,1000.009999,9e-05,2]
[408733702,1774180912594,500.0,0.00011465,10]
[408733703,1774180912816,500.0,0.00011465,11]
[408733704,1774180913034,500.0,0.00011465,12]
[408733705,1774180931511,233.49,0.00010293,2]
[408733706,1774180967665,-3658.36,0.00010451,2]
[408733707,1774180967692,-168.4481,0.000105,2]
[408733708,1774180967719,-250.0,0.00010533,2]
[408733709,1774180967745,-346.3938,0.00010566,2]
[408733710,1774180967926,-1153.6062,0.00010566,2]
[408733711,1774180967952,-3304.22,0.00010589,2]
[408733712,1774180968028,-2429.8807,0.00010707,2]
[408733713,1774180968055,-1200.0,0.00010958,2]
[408733714,1774180968163,-1004.463801,0.00010959,2]
[408733715,1774180968209,-3841.863801,0.00010959,2]
[408733716,1774180968273,-2316.282398,0.00010959,2]
[408733717,1774180968299,-1119.426204,0.00010959,2]
[408733718,1774180968335,-1620.822396,0.00010959,2]
[408733719,1774180968352,-1507.7704,0.00010959,2]
[408733720,1774180968361,-154.903,0.00010959,2]
[408733721,1774180968369,-653.608998,0.00010959,2]
[408733722,1774180968393,-1957.951002,0.00010959,2]
[408733723,1774180968402,-2290.067998,0.00011129,2]
[408733724,1774180968454,-10000.01,0.00011129,2]
[408733725,1774180968475,-7703.142002,0.00011129,2]
[408733726,1774180968485,-150.0,0.00011148,2]
[408733727,1774180968494,-2146.867998,0.00011149,2]
[408733728,1774180968523,-4720.72022436,0.00011149,2]
[408733729,1774180968547,-558.56955128,0.00011149,2]
[408733730,1774180968598,-0.02,0.00011149,2]
[408733731,1774180968621,-9999.97,0.00011149,2]
[408733732,1774180971588,-150.0,0.00010959,2]
[408733733,1774180971615,-150.99,0.00011149,2]
[408733734,1774180971641,-150.99,0.00011149,2]
[408733735,1774180971714,-9096.05,0.00011149,2]
[408733736,1774180971744,-903.94,0.00011149,2]
[408733737,1774180971771,-299.99,0.00011149,2]
[408733738,1774180971798,-999.99,0.00011149,2]
[408733739,1774180971825,-500.0,0.00011173,2]
[408733740,1774180971853,-500.0,0.00011173,2]
[408733741,1774180971880,-500.0,0.00011173,2]
[408733742,1774180971908,-504.9390148,0.00011173,2]
[408733743,1774180971935,-500.37225964,0.00011173,2]
[408733744,1774180971964,-81.54745112,0.00011173,2]
[408733745,1774180972033,-418.45254888,0.00011173,2]
[408733746,1774180972061,-500.0,0.00011173,2]
[408733747,1774180972090,-167.41151456,0.00011173,2]
[408733748,1774180972121,-501.05441945,0.00011173,2]
[408733749,1774180972149,-501.00729745,0.00011173,2]
[408733750,1774180972176,-164.18030866,0.00011173,2]
[408733751,1774180972203,-2500.0,0.00011259,2]
[408733752,1774180972515,-418.45254888,0.00011261,2]
[408733753,1774180972530,-495.797822,0.00011261,2]
[408733754,1774181015015,8525.42,0.00010522,2]
[408733755,1774181018982,-190.03725788,0.00011161,2]
[408733756,1774181019007,-300.0,0.0001126,2]
[408733757,1774181019031,-161.0,0.0001126,2]
[408733758,1774181019057,-4786.69256524,0.00011261,2]
[408733759,1774181019081,-150.81800731,0.00011264,2]
[408733760,1774181019105,-679.2561074,0.00011264,2]
[408733761,1774181019137,-1791.05001918,0.00011264,2]
[408733762,1774181019162,-209.11057196,0.00011264,2]
[408733763,1774181019185,-10000.0,0.00011264,2]
[408733764,1774181019209,-150.0,0.000113,2]
[408733765,1774181019233,-166.08424681,0.00011349,2]
[408733766,1774181019257,-150.0,0.00011351,2]
[408733767,1774181019282,-151.0,0.00011352,2]
[408733768,1774181019306,-151.0,0.00011352,2]
[408733769,1774181019330,-151.0,0.00011352,2]
[408733770,1774181019354,-151.0,0.00011352,2]
[408733771,1774181019385,-151.0,0.00011352,2]
[408733772,1774181019414,-151.0,0.00011352,2]
[408733773,1774181019439,-151.0,0.00011352,2]
[408733774,1774181019464,-151.0,0.00011352,2]
[408733775,1774181019490,-151.0,0.00011352,2]
[408733776,1774181019515,-151.0,0.00011352,2]
[408733777,1774181019540,-151.0,0.00011352,2]
[408733778,1774181019565,-151.0,0.00011352,2]
[408733779,1774181019590,-151.0,0.00011352,2]
[408733780,1774181019615,-151.0,0.00011352,2]
[408733781,1774181019645,-151.0,0.00011352,2]
[408733782,1774181019670,-151.0,0.00011352,2]
[408733783,1774181019696,-151.0,0.00011352,2]
[408733784,1774181019721,-151.0,0.00011352,2]
[408733785,1774181019746,-151.0,0.00011352,2]
[408733786,1774181019772,-151.0,0.00011352,2]
[408733787,1774181019802,-587.80209546,0.00011357,2]
[408733788,1774181019832,-587.80209546,0.00011357,2]
[408733789,1774181019864,-587.80209546,0.00011357,2]
[408733790,1774181019897,-587.80209546,0.00011357,2]
[408733791,1774181019927,-587.80209546,0.00011357,2]
[408733792,1774181019956,-587.80209546,0.00011357,2]
[408733793,1774181019985,-587.80209546,0.00011357,2]
[408733794,1774181020014,-587.80209546,0.00011357,2]
[408733795,1774181020042,-587.80209546,0.00011357,2]
[408733796,1774181020070,-587.80209546,0.00011357,2]
[408733797,1774181020099,-587.80209546,0.00011357,2]
[408733798,1774181020129,-587.80209546,0.00011357,2]
[408733799,1774181020158,-587.80209546,0.00011357,2]
[408733800,1774181020184,-2995.19,0.00011357,2]
[408733801,1774181020210,-5213.05,0.00011357,2]
[408733802,1774181020234,-999.99,0.00011357,2]
[408733803,1774181020258,-500.0,0.00011357,2]
[408733804,1774181020286,-1042.75882839,0.00011358,2]
[408733805,1774181020315,-1042.75882839,0.00011358,2]
[408733806,1774181020344,-1042.75882839,0.00011358,2]
[408733807,1774181020374,-1042.75882839,0.00011358,2]
[408733808,1774181020404,-1042.75882839,0.00011358,2]
[408733809,1774181020433,-1042.75882839,0.00011358,2]
[408733810,1774181020463,-1042.75882839,0.00011358,2]
[408733811,1774181020493,-1042.75882839,0.00011358,2]
[408733812,1774181020521,-1042.75882839,0.00011358,2]
[408733813,1774181020551,-1042.75882839,0.00011358,2]
[408733814,1774181020581,-1042.75882839,0.00011358,2]
[408733815,1774181020610,-1042.75882839,0.00011358,2]
[408733816,1774181020640,-1042.75882839,0.00011358,2]
[408733817,1774181020669,-1042.75882839,0.00011358,2]
[408733818,1774181020699,-1042.75882839,0.00011358,2]
[408733819,1774181020730,-1042.75882839,0.00011358,2]
[408733820,1774181020760,-1042.75882839,0.00011358,2]
[408733821,1774181020790,-1042.75882839,0.00011358,2]
[408733822,1774181020819,-1042.75882839,0.00011358,2]
[408733823,1774181020849,-1042.75882839,0.00011358,2]
[408733824,1774181020878,-1042.75882839,0.00011358,2]
[408733825,1774181020906,-1042.75882839,0.00011358,2]
[408733826,1774181020937,-1042.75882839,0.00011358,2]
[408733827,1774181020966,-1042.75882839,0.00011358,2]
[408733828,1774181020997,-1042.75882839,0.00011358,2]
[408733829,1774181021027,-1042.75882839,0.00011358,2]
[408733830,1774181021059,-1042.75882839,0.00011358,2]
[408733831,1774181021096,-1042.75882839,0.00011358,2]
[408733832,1774181021131,-1042.75882839,0.00011358,2]
[408733833,1774181021163,-1042.75882839,0.00011358,2]
[408733834,1774181021195,-1042.75882839,0.00011358,2]
[408733835,1774181021451,-1042.75882839,0.00011358,2]
[408733836,1774181021488,-1042.75882839,0.00011358,2]
[408733837,1774181021518,-1042.75882839,0.00011358,2]
[408733838,1774181021549,-1042.75882839,0.00011358,2]
[408733839,1774181021586,-1042.75882839,0.00011358,2]
[408733840,1774181021620,-1042.75882839,0.00011358,2]
[408733841,1774181021653,-1042.75882839,0.00011358,2]
[408733842,1774181021684,-1042.75882839,0.00011358,2]
[408733843,1774181021718,-1042.75882839,0.00011358,2]
[408733844,1774181021751,-1042.75882839,0.00011358,2]
[408733845,1774181021781,-1042.75882839,0.00011358,2]
[408733846,1774181021810,-1042.75882839,0.00011358,2]
[408733847,1774181021840,-1042.75882839,0.00011358,2]
[408733848,1774181021871,-1042.75882839,0.00011358,2]
[408733849,1774181021902,-1042.75882839,0.00011358,2]
[408733850,1774181021931,-1042.75882839,0.00011358,2]
[408733851,1774181021962,-1042.75882839,0.00011358,2]
[408733852,1774181021993,-1042.75882839,0.00011358,2]
[408733853,1774181022022,-1042.75882839,0.00011358,2]
[408733854,1774181022052,-1042.75882839,0.00011358,2]
[408733855,1774181022081,-1042.75882839,0.00011358,2]
[408733856,1774181022112,-1042.75882839,0.00011358,2]
[408733857,1774181022145,-1042.75882839,0.00011358,2]
[408733858,1774181022177,-1042.75882839,0.00011358,2]
[408733859,1774181022208,-1042.75882839,0.00011358,2]
[408733860,1774181022237,-1042.75882839,0.00011358,2]
[408733861,1774181022269,-1042.75882839,0.00011358,2]
[408733862,1774181022299,-1042.75882839,0.00011358,2]
[408733863,1774181022328,-500.0,0.00011358,2]
[408733864,1774181022358,-245.41821607,0.00011358,2]
[408733865,1774181022388,-3128.27648518,0.00011358,2]
[408733866,1774181022417,-3128.27648518,0.00011358,2]
[408733867,1774181022446,-3128.27648518,0.00011358,2]
[408733868,1774181022475,-3128.27648518,0.00011358,2]
[408733869,1774181022503,-3128.27648518,0.00011358,2]
[408733870,1774181022533,-3128.27648518,0.00011358,2]
[408733871,1774181022563,-3128.27648518,0.00011358,2]
[408733872,1774181022595,-3128.27648518,0.00011358,2]
[408733873,1774181022625,-3128.27648518,0.00011358,2]
[408733874,1774181022657,-3128.27648518,0.00011358,2]
[408733875,1774181022691,-3128.27648518,0.00011358,2]
[408733876,1774181022717,-307.86812449,0.00011358,2]
[408733877,1774181022749,-500.0,0.00011358,2]
[408733878,1774181022780,-500.00000012,0.00011358,2]
[408733879,1774181022807,-500.0,0.00011358,2]
[408733880,1774181022832,-500.0,0.00011358,2]